bitfinex/quotes_SOLUSD_20240616
["timestamp","ask_amount","ask_price","bid_price","bid_amount"]
[1718577009242,5.1061,149.92,149.83,16.653]
[1718577009442,2.4677,149.94,149.83,16.653]
[1718577009642,44.676,149.95,149.83,16.653]
[1718577009942,0.17,149.94,149.83,16.653]
[1718577010160,2.4676,149.94,149.83,16.653]
[1718577010350,2.4676,149.94,149.84,0.34]
[1718577010565,27.4027,149.95,149.84,0.34]
[1718577010767,34.8051,149.95,149.84,0.34]
[1718577011068,2.4676,149.94,149.84,0.34]
[1718577011274,22.4676,149.95,149.84,0.34]
[1718577011655,27.4025,149.95,149.84,0.34]
[1718577012047,2.4676,149.94,149.84,0.34]
[1718577012780,22.4675,149.95,149.85,0.34]
[1718577013449,2.4676,149.94,149.85,0.34]
[1718577013779,12.3399,149.92,149.84,20.0]
[1718577013945,12.3399,149.92,149.83,16.653]
[1718577013946,2.4682,149.91,149.83,16.653]
[1718577014272,14.8089,149.91,149.83,16.653]
[1718577014477,7.4045,149.91,149.83,16.653]
[1718577014771,5.2758,149.93,149.83,16.653]
[1718577014982,20.17,149.92,149.83,16.653]
[1718577015364,22.6379,149.92,149.83,16.653]
[1718577016075,27.5739,149.92,149.83,16.653]
[1718577016245,22.6379,149.92,149.83,16.653]
[1718577016872,27.5739,149.92,149.83,16.653]
[1718577019376,2.4683,149.9,149.83,16.653]
[1718577019553,22.4683,149.9,149.83,16.653]
[1718577019752,20.0,149.9,149.83,16.653]
[1718577020556,22.4683,149.9,149.83,16.653]
[1718577021481,20.0,149.9,149.83,16.653]
[1718577024192,22.4682,149.91,149.83,16.653]
[1718577024763,27.4045,149.91,149.83,16.653]
[1718577025083,8.085,149.9,149.83,16.653]
[1718577025293,20.0,149.89,149.83,16.653]
[1718577025468,7.4064,149.87,149.79,16.3528]
[1718577025793,20.0,149.86,149.79,16.3528]
[1718577026383,23.1487,149.88,149.79,16.3528]
[1718577027588,5.24,149.87,149.81,5.24]
[1718577027757,20.0,149.86,149.81,5.24]
[1718577028396,25.24,149.86,149.8,5.24]
[1718577029190,30.178,149.86,149.79,16.3528]
[1718577029385,5.24,149.85,149.8,5.24]
[1718577029891,7.7091,149.85,149.79,16.3528]
[1718577030064,7.7091,149.85,149.79,21.5928]
[1718577030462,5.24,149.83,149.79,16.3528]
[1718577031182,0.17,149.84,149.79,16.3528]
[1718577031183,5.41,149.84,149.79,16.3528]
[1718577031899,5.41,149.84,149.79,21.5928]
[1718577032299,0.17,149.85,149.8,5.24]
[1718577032498,0.17,149.85,149.79,16.3528]
[1718577032668,17.2772,149.91,149.82,5.24]
[1718577032873,5.24,149.9,149.84,5.24]
[1718577033069,6.95596931,149.92,149.85,5.24]
[1718577033379,5.24,149.95,149.89,5.24]
[1718577033816,31.62046423,149.96,149.89,5.24]
[1718577034101,7.402,149.96,149.89,5.24]
[1718577034271,5.24,149.95,149.89,5.24]
[1718577034473,2.4676,149.94,149.89,5.24]
[1718577034899,27.7076,149.94,149.88,5.24]
[1718577035208,12.6434,149.93,149.88,5.24]
[1718577035512,22.2103,149.93,149.86,15.1042]
[1718577035688,27.9139,149.92,149.86,15.1042]
[1718577035875,45.1899,149.92,149.86,15.1042]
[1718577036071,12.3409,149.91,149.86,15.1042]
[1718577036371,8.0851,149.9,149.79,21.4007]
[1718577036607,8.0851,149.9,149.8,20.0]
[1718577036972,0.68,149.9,149.8,20.0]
[1718577038296,20.0,149.92,149.81,0.17]
[1718577038503,0.17,149.92,149.81,0.68]
[1718577038702,0.68,149.92,149.81,0.68]
[1718577038903,3.1479,149.92,149.81,0.68]
[1718577039212,23.1479,149.92,149.81,0.68]
[1718577039884,28.0838,149.92,149.81,0.51]
[1718577040085,23.1479,149.92,149.81,0.17]
[1718577040388,20.68,149.92,149.81,0.34]
[1718577040792,20.0,149.92,149.82,15.4668]
[1718577040996,20.17,149.93,149.82,15.4668]
[1718577041337,22.2475,149.98,149.84,6.1771]
[1718577041617,2.4673,149.96,149.85,20.0]
[1718577041985,4.9351,149.95,149.85,20.0]
[1718577042204,7.4027,149.95,149.85,20.0]
[1718577042711,2.4676,149.94,149.85,20.0]
[1718577042917,7.4029,149.94,149.84,6.1771]
[1718577043324,2.4676,149.94,149.84,6.1771]
[1718577043620,22.4676,149.94,149.84,6.1771]
[1718577044312,2.4678,149.93,149.84,6.1771]
[1718577044510,2.6378,149.93,149.84,6.1771]
[1718577044714,22.6378,149.93,149.84,6.1771]
[1718577044916,20.17,149.93,149.84,6.1771]
[1718577045519,20.34,149.94,149.84,6.1771]
[1718577045824,20.17,149.94,149.84,6.1771]
[1718577046121,20.0,149.94,149.84,6.1771]
[1718577046804,20.34,149.95,149.84,6.1771]
[1718577047422,16.81841503,149.97,149.86,16.3392]
[1718577047423,6.94981503,149.97,149.86,16.3392]
[1718577047720,9.0045,149.98,149.86,16.3392]
[1718577047721,2.4676,149.94,149.86,16.3392]
[1718577048107,7.4027,149.95,149.86,16.3392]
[1718577048307,22.4674,149.96,149.86,16.3392]
[1718577048708,27.4021,149.96,149.86,16.3392]
[1718577049031,0.17,149.93,149.86,16.3392]
[1718577049232,7.5735,149.93,149.86,16.3392]
[1718577049402,0.17,149.93,149.86,16.3392]
[1718577049601,23.1478,149.93,149.86,16.3392]
[1718577050228,20.68,149.93,149.86,16.3392]
[1718577050602,23.1478,149.93,149.86,16.3392]
[1718577051221,20.68,149.93,149.86,16.3392]
[1718577053530,0.68,149.93,149.86,16.3392]
[1718577054426,3.1478,149.93,149.86,16.3392]
[1718577054731,23.1478,149.93,149.86,16.3392]
[1718577055121,20.68,149.93,149.86,16.3392]
[1718577055633,0.68,149.93,149.86,16.3392]
[1718577055819,20.68,149.93,149.86,16.3392]
[1718577056352,28.0834,149.93,149.86,16.3392]
[1718577058728,25.6156,149.93,149.86,16.3392]
[1718577058960,0.17,149.9,149.84,6.1771]
[1718577059142,0.68,149.9,149.84,6.1771]
[1718577059318,3.1483,149.9,149.84,6.1771]
[1718577059510,0.68,149.9,149.84,6.1771]
[1718577060014,3.1483,149.9,149.82,15.774]
[1718577060212,0.68,149.9,149.82,15.774]
[1718577062213,20.0,149.91,149.82,15.774]
[1718577062610,0.17,149.91,149.82,15.774]
[1718577062808,0.34,149.91,149.82,15.774]
[1718577063217,0.17,149.91,149.82,15.774]
[1718577063430,0.34,149.92,149.82,15.774]
[1718577065729,0.34,149.92,149.83,1.33276251]
[1718577066035,0.34,149.92,149.82,15.774]
[1718577066036,0.34,149.93,149.82,15.774]
[1718577066743,0.34,149.93,149.84,21.8392]
[1718577066744,0.17,149.93,149.84,21.8392]
[1718577067045,0.34,149.93,149.84,21.8392]
[1718577067212,0.34,149.93,149.85,1.33339786]
[1718577067954,2.4682,149.91,149.84,21.8392]
[1718577068258,27.5746,149.91,149.84,21.8392]
[1718577068461,22.6382,149.91,149.84,21.8392]
[1718577069250,20.17,149.91,149.84,21.8392]
[1718577069759,22.6381,149.91,149.84,21.8392]
[1718577070472,4.9371,149.89,149.84,15.6353]
[1718577070646,5.1077,149.87,149.8,22.4416]
[1718577070843,7.5765,149.87,149.8,22.4416]
[1718577071057,22.4689,149.86,149.8,22.4416]
[1718577071249,42.2212,149.86,149.8,22.4416]
[1718577071441,0.68,149.85,149.8,16.0238]
[1718577071770,20.0,149.86,149.8,16.0238]
[1718577071971,0.17,149.86,149.8,16.0238]
[1718577072264,0.34,149.86,149.8,16.0238]
[1718577072863,20.0,149.87,149.8,16.0238]
[1718577073084,9.8735,149.9,149.81,6.3263]
[1718577073249,7.4055,149.89,149.81,6.3263]
[1718577073449,2.4686,149.88,149.81,6.3263]
[1718577073668,7.4058,149.88,149.81,6.3263]
[1718577073841,2.4686,149.88,149.81,6.3263]
[1718577074049,22.2165,149.89,149.81,6.3263]
[1718577074256,2.6387,149.88,149.81,6.3263]
[1718577074567,0.17,149.88,149.81,6.3263]
[1718577074765,0.68,149.88,149.81,6.3263]
[1718577076243,20.0,149.89,149.81,6.3263]
[1718577076447,6.95750288,149.91,149.81,6.3263]
[1718577076448,20.0,149.9,149.81,6.3263]
[1718577076764,4.9369,149.89,149.81,6.3263]
[1718577076945,2.6386,149.88,149.81,6.3263]
[1718577077247,2.4684,149.89,149.81,6.3263]
[1718577077447,22.4684,149.89,149.81,6.3263]
[1718577077669,20.0,149.89,149.81,6.3263]
[1718577077880,22.4684,149.89,149.81,6.3263]
[1718577078545,2.4688,149.87,149.81,6.3263]
[1718577078745,20.0,149.87,149.81,6.3263]
[1718577078968,22.4688,149.87,149.81,6.3263]
[1718577079272,0.17,149.86,149.81,6.3263]
[1718577079569,0.68,149.86,149.8,16.0238]
[1718577079742,3.1489,149.86,149.8,16.0238]
[1718577079944,23.1489,149.86,149.8,16.0238]
[1718577080350,28.0868,149.86,149.8,16.0238]
[1718577080955,2.4692,149.85,149.8,16.0238]
[1718577081274,0.51,149.84,149.8,16.0238]
[1718577082363,0.17,149.84,149.8,16.0238]
[1718577083786,0.51,149.85,149.8,16.0238]
[1718577085383,0.34,149.85,149.8,16.0238]
[1718577085560,20.0,149.85,149.8,16.0238]
[1718577085879,0.34,149.86,149.8,16.0238]
[1718577087360,5.278,149.86,149.8,16.0238]
[1718577087557,22.8091,149.85,149.8,16.0238]
[1718577088877,0.17,149.84,149.8,16.0238]
[1718577089060,0.34,149.84,149.8,16.0238]
[1718577089256,22.2256,149.83,149.77,6.1051]
[1718577089584,20.68,149.82,149.77,6.1051]
[1718577090174,0.68,149.82,149.77,6.1051]
[1718577091396,3.1497,149.82,149.77,6.1051]
[1718577091573,0.17,149.8,149.76,15.2324]
[1718577091959,0.17,149.81,149.76,15.2324]
[1718577092396,0.51,149.82,149.76,15.2324]
[1718577092880,2.4698,149.81,149.76,15.2324]
[1718577093196,20.0,149.81,149.76,15.2324]
[1718577093394,0.17,149.84,149.76,15.2324]
[1718577093697,20.68,149.84,149.76,15.2324]
[1718577093891,23.1493,149.84,149.76,15.2324]
[1718577095162,20.0,149.84,149.76,15.2324]
[1718577095487,2.469,149.86,149.77,6.2236]
[1718577095789,2.4692,149.85,149.77,6.2236]
[1718577096293,7.4079,149.84,149.77,6.2236]
[1718577096472,0.34,149.83,149.77,6.2236]
[1718577096674,0.51,149.83,149.77,6.2236]
[1718577098903,6.94611807,149.88,149.77,6.2236]
[1718577099084,20.0,149.87,149.77,6.2236]
[1718577099399,2.4685,149.89,149.77,6.2236]
[1718577099884,2.4686,149.88,149.77,6.2236]
[1718577100512,22.2151,149.9,149.78,31.6642]
[1718577100798,20.0,149.89,149.78,32.0042]
[1718577101101,22.4684,149.9,149.78,32.0042]
[1718577101436,7.4049,149.9,149.78,32.0042]
[1718577101689,0.17,149.89,149.79,20.0]
[1718577101867,3.1484,149.89,149.79,20.0]
[1718577102068,0.17,149.89,149.79,20.0]
[1718577102269,14.8099,149.9,149.79,20.0]
[1718577102599,0.17,149.88,149.79,20.0]
[1718577102762,2.4688,149.87,149.79,20.0]
[1718577102966,2.4688,149.87,149.78,31.3242]
[1718577103167,14.8129,149.87,149.78,31.3242]
[1718577103468,7.4065,149.87,149.78,31.3242]
[1718577103698,7.4065,149.87,149.79,0.59018282]
[1718577104005,2.4688,149.87,149.79,0.59018282]
[1718577104170,25.3668,149.88,149.79,21.33494674]
[1718577104373,3.1487,149.88,149.79,21.33494674]
[1718577104568,0.68,149.88,149.79,21.33494674]
[1718577104985,3.1486,149.88,149.79,21.33494674]
[1718577105397,8.0858,149.88,149.79,21.33494674]
[1718577105600,2.4688,149.87,149.79,21.33494674]
[1718577105912,7.4064,149.87,149.79,21.33494674]
[1718577106078,7.4064,149.87,149.79,20.0]
[1718577106488,2.4688,149.87,149.78,31.3242]
[1718577107296,0.68,149.88,149.78,31.3242]
[1718577107507,2.4686,149.88,149.78,31.3242]
[1718577108306,7.4058,149.88,149.78,31.3242]
[1718577108889,42.7268,149.89,149.78,31.3242]
[1718577109201,0.68,149.88,149.78,31.3242]
[1718577109403,5.92,149.88,149.82,5.24]
[1718577109788,32.6457,149.89,149.83,5.24]
[1718577110805,2.4686,149.88,149.83,5.24]
[1718577111291,47.4565,149.89,149.83,5.24]
[1718577111498,49.9251,149.89,149.83,5.24]
[1718577111681,2.4686,149.88,149.83,5.24]
[1718577112577,14.811,149.89,149.84,16.577]
[1718577112887,0.68,149.9,149.84,21.817]
[1718577113199,0.68,149.9,149.85,5.24]
[1718577113404,5.24,149.91,149.85,5.24]
[1718577113602,5.24,149.91,149.84,16.577]
[1718577113603,12.3391,149.93,149.88,5.24]
[1718577113785,22.2105,149.93,149.88,5.24]
[1718577113979,29.9184,149.93,149.88,5.24]
[1718577114170,12.6436,149.93,149.88,5.24]
[1718577114399,20.047,149.93,149.88,5.24]
[1718577115484,2.4679,149.92,149.85,1.33444231]
[1718577115695,2.4679,149.92,149.85,21.33444231]
[1718577115894,2.4679,149.92,149.85,20.0]
[1718577116213,2.4679,149.93,149.86,0.72791675]
[1718577116468,7.4035,149.93,149.86,0.72791675]
[1718577116714,7.4035,149.93,149.85,20.72834713]
[1718577117288,2.4679,149.92,149.85,20.72834713]
[1718577117487,25.357,149.94,149.86,0.72829852]
[1718577117831,8.0831,149.94,149.86,0.72829852]
[1718577118116,15.486,149.94,149.86,0.72829852]
[1718577118324,8.0831,149.94,149.85,20.0]
[1718577119310,15.4861,149.94,149.85,20.0]
[1718577119600,2.4678,149.93,149.85,20.0]
[1718577120235,24.6739,149.96,149.86,22.70341881]
[1718577120378,7.4015,149.97,149.88,15.1822]
[1718577120578,7.4006,149.99,149.89,20.0]
[1718577120779,2.467,149.98,149.9,6.5702]
[1718577121209,7.401,149.98,149.9,6.5702]
[1718577122007,29.90850253,150.02,149.91,20.0]
[1718577122179,2.4663,150.02,149.91,36.2968]
[1718577122384,2.4665,150.01,149.91,36.2968]
[1718577122691,2.4667,150.0,149.91,36.2968]
[1718577122889,7.4,150.0,149.91,36.2968]
[1718577123302,24.6655,150.01,149.91,36.2968]
[1718577123507,7.3997,150.01,149.91,36.2968]
[1718577123882,2.4666,150.01,149.91,36.2968]
[1718577124079,7.3996,150.01,149.91,36.2968]
[1718577124279,7.3987,150.03,149.92,0.17]
[1718577124513,29.61982009,150.06,149.96,6.191]
[1718577124514,7.80032009,150.06,149.96,6.191]
[1718577124728,0.8465479,150.06,149.97,36.272]
[1718577125018,3.3121479,150.06,149.97,36.442]
[1718577125213,14.7964,150.04,149.97,36.272]
[1718577125388,24.6606,150.04,149.97,36.272]
[1718577125583,2.4661,150.04,149.97,36.272]
[1718577125784,3.3122479,150.06,149.97,36.272]
[1718577125979,23.3122479,150.06,149.97,36.272]
[1718577126191,23.3121479,150.06,149.97,36.272]
[1718577126483,2.4659,150.05,149.97,36.272]
[1718577126688,20.8465479,150.06,149.97,36.272]
[1718577126905,35.6405479,150.06,149.97,36.272]
[1718577127106,7.3976,150.05,149.97,36.272]
[1718577127316,2.466,150.04,149.97,36.272]
[1718577127498,43.0380479,150.06,149.97,36.272]
[1718577127999,2.4659,150.05,149.97,36.272]
[1718577128195,20.8465479,150.06,149.97,36.272]
[1718577128508,0.8465479,150.06,149.97,36.272]
[1718577129720,20.8465479,150.06,149.97,36.272]
[1718577129896,0.8465479,150.06,149.97,36.272]
[1718577130307,0.8465479,150.06,149.97,51.982]
[1718577130795,0.8465479,150.06,149.98,0.17]
[1718577130995,0.8465479,150.06,149.98,0.51]
[1718577131213,0.8465479,150.06,149.98,0.68]
[1718577131521,0.8465479,150.06,149.99,21.7423]
[1718577131744,0.8465479,150.06,150.01,15.8227]
[1718577131903,0.8465479,150.06,150.02,20.17]
[1718577132797,0.8465479,150.06,150.03,0.17]
[1718577133003,0.8465479,150.06,150.03,0.34]
[1718577133222,0.8465479,150.06,150.05,15.6608]
[1718577133523,0.8465479,150.06,150.05,35.6608]
[1718577133899,0.8465479,150.06,150.05,15.6608]
[1718577134304,0.8465479,150.06,149.99,6.5554]
[1718577134502,0.8465479,150.06,150.0,20.0]
[1718577134696,3.3121479,150.06,150.0,20.0]
[1718577134897,0.8465479,150.06,150.0,20.0]
[1718577135497,0.8465479,150.06,149.99,6.5554]
[1718577135740,8.2437479,150.06,149.99,6.5554]
[1718577135903,0.8465479,150.06,149.99,6.5554]
[1718577136533,0.34,150.05,149.99,6.5554]
[1718577136720,0.8465479,150.06,149.99,6.5554]
[1718577137630,0.8465479,150.06,150.0,20.0]
[1718577138361,0.8465479,150.06,150.01,15.1712]
[1718577138514,0.8465479,150.06,150.02,20.0]
[1718577139064,0.8465479,150.06,150.01,15.1712]
[1718577140166,0.8465479,150.06,150.02,0.51]
[1718577140335,0.8465479,150.06,150.03,0.17]
[1718577141237,0.8465479,150.06,150.04,0.17]
[1718577141463,0.8465479,150.06,150.04,20.51]
[1718577141667,21.491,150.19,150.06,0.17]
[1718577141844,0.8465479,150.21,150.08,0.17]
[1718577142161,0.8465479,150.21,150.08,20.68]
[1718577142162,2.4635,150.19,150.08,20.68]
[1718577142657,24.6348,150.2,150.08,20.68]
[1718577142860,0.8465479,150.21,150.08,20.68]
[1718577143170,0.8465479,150.21,150.09,0.17]
[1718577143336,2.4636,150.19,150.09,0.68]
[1718577143533,2.4637,150.18,150.09,0.17]
[1718577143838,7.3914,150.18,150.08,20.0]
[1718577144058,2.4638,150.18,150.08,20.0]
[1718577144268,2.4635,150.19,150.09,0.17]
[1718577144473,22.4635,150.19,150.09,0.68]
[1718577144645,20.0,150.18,150.09,0.68]
[1718577144849,0.8465479,150.21,150.09,0.51]
[1718577145158,0.8465479,150.21,150.11,0.17]
[1718577145346,0.8465479,150.21,150.11,0.51]
[1718577145541,14.34078606,150.2,150.11,20.0]
[1718577145767,7.3906,150.19,150.11,20.0]
[1718577146068,7.3911,150.18,150.11,20.0]
[1718577146445,0.17,150.18,150.11,20.0]
[1718577146765,22.1711,150.2,150.11,20.0]
[1718577146950,22.4635,150.19,150.1,21.7238]
[1718577147148,20.0,150.19,150.1,21.7238]
[1718577147349,2.4635,150.19,150.1,21.7238]
[1718577147650,22.4635,150.19,150.1,21.7238]
[1718577148369,27.3906,150.19,150.1,21.7238]
[1718577148659,24.9271,150.19,150.1,21.7238]
[1718577148869,20.0,150.19,150.1,21.7238]
[1718577149088,22.4636,150.19,150.1,21.7238]
[1718577149384,20.0,150.19,150.1,21.7238]
[1718577150072,2.4634,150.2,150.11,20.0]
[1718577150385,8.30753418,150.21,150.11,20.0]
[1718577150538,7.79753418,150.21,150.11,20.0]
[1718577151236,7.79753418,150.21,150.12,0.17]
[1718577151458,7.79753418,150.21,150.12,0.68]
[1718577151663,7.79753418,150.21,150.12,0.51]
[1718577151664,0.8465479,150.21,150.12,0.51]
[1718577151865,2.4634,150.2,150.1,21.8938]
[1718577152169,6.95170728,150.2,150.11,0.17]
[1718577152340,6.95170728,150.2,150.11,0.68]
[1718577152544,9.41500728,150.2,150.1,21.7238]
[1718577152744,6.95170728,150.2,150.1,21.7238]
[1718577153499,6.95170728,150.2,150.11,0.68]
[1718577159879,19.26870728,150.2,150.1,21.7238]
[1718577160077,14.7813,150.19,150.1,21.7238]
[1718577160475,6.95170728,150.2,150.1,21.7238]
[1718577161559,14.34190728,150.2,150.1,21.7238]
[1718577161892,14.34200728,150.2,150.1,21.7238]
[1718577162396,2.4635,150.19,150.1,21.7238]
[1718577162567,21.73210728,150.2,150.1,21.7238]
[1718577162763,9.41510728,150.2,150.1,21.7238]
[1718577163193,2.4635,150.19,150.1,21.7238]
[1718577163608,0.17,150.18,150.1,21.7238]
[1718577163910,15.88,150.18,150.1,15.6348]
[1718577164077,20.51,150.17,150.1,15.6348]
[1718577165391,22.9739,150.17,150.1,15.6348]
[1718577165687,20.51,150.17,150.1,15.6348]
[1718577166088,7.9015,150.17,150.1,15.6348]
[1718577166392,2.464,150.16,150.1,15.6348]
[1718577167193,22.6848,150.17,150.1,15.6348]
[1718577167497,2.464,150.16,150.1,15.6348]
[1718577167994,7.9016,150.17,150.1,15.6348]
[1718577168382,0.51,150.17,150.1,15.6348]
[1718577168798,6.95560892,150.18,150.1,15.6348]
[1718577169502,14.34680892,150.18,150.1,15.6348]
[1718577170596,6.95560892,150.18,150.1,15.6348]
[1718577171099,6.95560892,150.18,150.11,6.5653]
[1718577171393,12.92560892,150.18,150.12,5.97]
[1718577172816,6.95560892,150.18,150.13,5.97]
[1718577173380,6.95560892,150.18,150.11,6.5653]
[1718577173678,6.95560892,150.18,150.12,0.17]
[1718577173883,6.95560892,150.18,150.12,0.68]
[1718577174887,0.8465479,150.21,150.12,0.68]
[1718577175270,6.95410389,150.19,150.12,0.68]
[1718577175472,6.95410389,150.19,150.13,15.4062]
[1718577175677,6.95410389,150.19,150.14,2.01160397]
[1718577175901,0.8465479,150.21,150.13,15.4062]
[1718577177497,0.8465479,150.21,150.14,1.67171709]
[1718577177700,0.8465479,150.21,150.15,1.33159373]
[1718577179219,0.8465479,150.21,150.16,6.4756]
[1718577179401,0.8465479,150.21,150.17,1.33151932]
[1718577179799,0.8465479,150.21,150.16,6.4756]
[1718577183009,2.4634,150.2,150.13,15.4062]
[1718577183217,9.8537,150.2,150.13,15.4062]
[1718577183408,9.8537,150.2,150.1,6.1996]
[1718577183409,0.17,150.18,150.1,6.1996]
[1718577183608,2.4645,150.14,150.09,16.0095]
[1718577183803,2.4645,150.13,150.09,16.0095]
[1718577184001,22.1782,150.15,150.06,6.1996]
[1718577184312,2.4641,150.16,150.06,6.1996]
[1718577184533,0.34,150.15,150.06,6.1996]
[1718577184717,0.68,150.15,150.06,6.1996]
[1718577184915,7.3941,150.12,150.05,15.4967]
[1718577185113,2.4647,150.12,150.05,15.4967]
[1718577185425,0.34,150.13,150.05,15.4967]
[1718577185629,20.3544,150.14,150.05,15.4967]
[1718577185630,25.2831,150.14,150.05,15.4967]
[1718577185812,2.4645,150.13,150.05,15.4967]
[1718577186010,20.3544,150.14,150.05,15.4967]
[1718577188126,25.2831,150.14,150.05,15.4967]
[1718577188308,20.3544,150.14,150.05,15.4967]
[1718577188803,17.89,150.14,150.05,15.4967]
[1718577190012,0.34,150.13,150.05,15.4967]
[1718577190221,0.68,150.13,150.05,15.4967]
[1718577190733,3.1445,150.13,150.05,15.4967]
[1718577190907,0.68,150.13,150.05,15.4967]
[1718577195642,5.97,150.1,150.05,15.4967]
[1718577197826,5.97,150.1,150.05,16.82939261]
[1718577198035,5.97,150.1,150.05,15.4967]
[1718577198238,5.97,150.1,150.05,16.0030299]
[1718577198538,5.97,150.1,150.05,15.4967]
[1718577199611,6.9573974,150.15,150.05,21.4667]
[1718577199816,5.97,150.13,150.08,12.2113]
[1718577200131,5.97,150.12,150.08,6.2413]
[1718577201046,5.97,150.16,150.05,15.4967]
[1718577201047,2.4644,150.14,150.05,15.4967]
[1718577201206,5.97,150.1,150.05,15.4967]
[1718577201823,5.97,150.09,150.05,15.4967]
[1718577202716,5.97,150.08,150.05,15.4967]
[1718577206847,24.6507,150.1,150.01,16.4228]
[1718577207145,5.97,150.04,150.01,16.4228]
[1718577207546,5.97,150.05,150.01,16.4228]
[1718577208445,5.97,150.04,150.01,16.4228]
[1718577208640,5.97,150.05,150.01,16.4228]
[1718577209232,20.68,150.09,150.01,16.4228]
[1718577209421,20.17,150.09,150.02,5.97]
[1718577209623,5.97,150.07,150.02,5.97]
[1718577212841,5.97,150.08,150.02,5.97]
[1718577213360,5.97,150.08,150.03,5.97]
[1718577213934,5.97,150.08,150.02,5.97]
[1718577214945,5.97,150.07,150.01,22.3928]
[1718577215139,5.97,150.05,150.01,16.4228]
[1718577215859,2.4657,150.06,150.01,16.4228]
[1718577215860,5.97,150.04,150.01,16.4228]
[1718577216040,14.7941,150.06,150.01,16.4228]
[1718577216041,5.97,150.03,150.01,16.4228]
[1718577216234,5.97,150.03,149.98,5.97]
[1718577216850,0.17,150.06,149.98,5.97]
[1718577217058,5.97,150.03,149.97,15.5469]
[1718577217245,5.97,150.03,149.98,5.97]
[1718577217569,5.97,150.03,149.97,21.5169]
[1718577217770,5.97,150.03,149.98,5.97]
[1718577219039,5.97,150.04,149.98,5.97]
[1718577219244,5.97,150.03,149.98,5.97]
[1718577219752,5.97,150.04,149.98,5.97]
[1718577219952,0.51,150.06,149.97,15.5469]
[1718577219953,5.97,150.05,149.99,5.97]
[1718577220655,16.0246,150.09,150.0,5.97]
[1718577220866,5.97,150.06,150.0,5.97]
[1718577221162,5.97,150.06,149.96,6.3231]
[1718577221163,5.97,150.09,149.99,22.0318]
[1718577221363,5.97,150.09,150.03,5.97]
[1718577222537,5.97,150.08,149.99,22.0318]
[1718577222772,5.97,150.08,150.02,5.97]
[1718577222984,20.59345351,150.13,150.04,5.97]
[1718577222985,15.1328,150.13,150.04,5.97]
[1718577223141,5.97,150.1,150.01,0.17]
[1718577223344,5.97,150.1,150.05,5.97]
[1718577223539,15.1328,150.13,150.05,21.3887]
[1718577223754,5.97,150.11,150.05,21.3887]
[1718577224166,6.9580652,150.15,150.07,5.97]
[1718577224366,5.97,150.13,150.07,5.97]
[1718577224569,5.97,150.11,150.06,5.97]
[1718577224953,22.1795,150.14,150.06,5.97]
[1718577224954,5.97,150.12,150.06,5.97]
[1718577226281,5.97,150.11,150.06,5.97]
[1718577226569,5.97,150.1,150.05,21.4645]
[1718577227271,0.17,150.12,150.05,21.4645]
[1718577227457,5.97,150.1,150.05,21.4645]